[Event "Titled Tuesday Blitz January 31 Early 2023"]
[White "Moroni, Luca Jr"]
[Black "Agasarov, Benik"]
[WhiteFideId "865834"]
[BlackFideId "13314823"]
[WhiteElo "2535"]
[BlackElo "2235"]
[Result "1-0"]
[Round "03"]
[TimeControl "180+2"]
[Date "2023.01.31"]
[WhiteClock "0:00:05"]
[BlackClock "0:00:03"]

1. d4 {[%clk 0:03:00]}  Nf6 {[%clk 0:02:59]} 2. Nf3 {[%clk 0:03:00]}  d5 {[%clk 0:02:58]} 3. c3 {[%clk 0:02:58]}  c5 {[%clk 0:02:52]} 4. Bf4 {[%clk 0:02:57]}  Nc6 {[%clk 0:02:50]} 5. e3 {[%clk 0:02:56]}  Qb6 {[%clk 0:02:45]} 6. Qb3 {[%clk 0:02:51]}  c4 {[%clk 0:02:44]} 7. Qc2 {[%clk 0:02:51]}  Bf5 {[%clk 0:02:41]} 8. Qc1 {[%clk 0:02:51]}  Nh5 {[%clk 0:02:38]} 9. Bg3 {[%clk 0:02:42]}  Nxg3 {[%clk 0:02:38]} 10. hxg3 {[%clk 0:02:43]}  h5 {[%clk 0:02:38]} 11. Nbd2 {[%clk 0:02:40]}  e6 {[%clk 0:02:35]} 12. Be2 {[%clk 0:02:17]}  Be7 {[%clk 0:02:28]} 13. Nh4 {[%clk 0:02:13]}  g6 {[%clk 0:01:23]} 14. Nxf5 {[%clk 0:02:01]}  exf5 {[%clk 0:01:23]} 15. b3 {[%clk 0:02:01]}  cxb3 {[%clk 0:01:14]} 16. axb3 {[%clk 0:02:01]}  Rc8 {[%clk 0:01:12]} 17. Qb2 {[%clk 0:01:55]}  Bf6 {[%clk 0:01:00]} 18. Bf3 {[%clk 0:01:51]}  Qd8 {[%clk 0:00:56]} 19. O-O {[%clk 0:01:40]}  h4 {[%clk 0:00:50]} 20. gxh4 {[%clk 0:01:40]}  Bxh4 {[%clk 0:00:45]} 21. g3 {[%clk 0:01:40]}  Bf6 {[%clk 0:00:40]} 22. Kg2 {[%clk 0:01:23]}  O-O {[%clk 0:00:34]} 23. Rh1 {[%clk 0:01:23]}  Kg7 {[%clk 0:00:32]} 24. c4 {[%clk 0:01:18]}  dxc4 {[%clk 0:00:28]} 25. bxc4 {[%clk 0:01:19]}  Nxd4 {[%clk 0:00:27]} 26. exd4 {[%clk 0:01:08]}  Bxd4 {[%clk 0:00:28]} 27. Qc2 {[%clk 0:00:55]}  Bxa1 {[%clk 0:00:28]} 28. Rxa1 {[%clk 0:00:56]}  Qd4 {[%clk 0:00:26]} 29. Ra2 {[%clk 0:00:40]}  b5 {[%clk 0:00:25]} 30. Be2 {[%clk 0:00:29]}  bxc4 {[%clk 0:00:23]} 31. Nxc4 {[%clk 0:00:24]}  Rh8 {[%clk 0:00:21]} 32. Qb2 {[%clk 0:00:20]}  Qxb2 {[%clk 0:00:20]} 33. Rxb2 {[%clk 0:00:21]}  Rc7 {[%clk 0:00:18]} 34. Ne3 {[%clk 0:00:19]}  Re8 {[%clk 0:00:17]} 35. Ra2 {[%clk 0:00:19]}  Re5 {[%clk 0:00:16]} 36. Ra6 {[%clk 0:00:18]}  Re6 {[%clk 0:00:15]} 37. Ra5 {[%clk 0:00:17]}  Rc3 {[%clk 0:00:14]} 38. Rxa7 {[%clk 0:00:13]}  Rexe3 {[%clk 0:00:05]} 39. fxe3 {[%clk 0:00:14]}  Rxe3 {[%clk 0:00:05]} 40. Bc4 {[%clk 0:00:14]}  g5 {[%clk 0:00:05]} 41. Rxf7+ {[%clk 0:00:08]}  Kg6 {[%clk 0:00:06]} 42. Ra7 {[%clk 0:00:08]}  f4 {[%clk 0:00:05]} 43. g4 {[%clk 0:00:04]}  Rg3+ {[%clk 0:00:05]} 44. Kf2 {[%clk 0:00:05]}  Rxg4 {[%clk 0:00:05]} 45. Bd3+ {[%clk 0:00:04]}  Kf6 {[%clk 0:00:05]} 46. Ra6+ {[%clk 0:00:04]}  Ke7 {[%clk 0:00:05]} 47. Ra5 {[%clk 0:00:05]}  Rg3 {[%clk 0:00:05]} 48. Be4 {[%clk 0:00:05]}  Re3 {[%clk 0:00:05]} 49. Bf3 {[%clk 0:00:05]}  Kf6 {[%clk 0:00:06]} 50. Kg2 {[%clk 0:00:04]}  Re5 {[%clk 0:00:05]} 51. Ra6+ {[%clk 0:00:05]}  Re6 {[%clk 0:00:06]} 52. Ra8 {[%clk 0:00:05]}  Re3 {[%clk 0:00:06]} 53. Ra7 {[%clk 0:00:04]}  g4 {[%clk 0:00:06]} 54. Bc6 {[%clk 0:00:03]}  Re2+ {[%clk 0:00:06]} 55. Kf1 {[%clk 0:00:04]}  Rc2 {[%clk 0:00:06]} 56. Ra6 {[%clk 0:00:04]}  Ke5 {[%clk 0:00:05]} 57. Ra5+ {[%clk 0:00:05]}  Kd4 {[%clk 0:00:06]} 58. Ra4+ {[%clk 0:00:05]}  Ke5 {[%clk 0:00:06]} 59. Ra5+ {[%clk 0:00:05]}  Kd6 {[%clk 0:00:06]} 60. Be4 {[%clk 0:00:05]}  f3 {[%clk 0:00:06]} 61. Bxc2 {[%clk 0:00:04]}  g3 {[%clk 0:00:03]} 62. Rg5 {[%clk 0:00:05]} 1-0


[Site "https://www.chess.com"]

[Event "Titled Tuesday Blitz January 31 Early 2023"]
[White "Jones, Gawain C B"]
[Black "Martinez Ramirez, Lennis"]
[WhiteFideId "409561"]
[BlackFideId "3509079"]
[WhiteElo "2618"]
[BlackElo "2426"]
[Result "1-0"]
[Round "03"]
[TimeControl "180+2"]
[Date "2023.01.31"]
[WhiteClock "0:00:15"]
[BlackClock "0:00:01"]

1. Nf3 {[%clk 0:03:00]}  d5 {[%clk 0:02:58]} 2. c4 {[%clk 0:02:59]}  d4 {[%clk 0:02:56]} 3. b4 {[%clk 0:02:59]}  Bg4 {[%clk 0:02:50]} 4. Qb3 {[%clk 0:02:58]}  Nf6 {[%clk 0:02:44]} 5. Ne5 {[%clk 0:02:57]}  Bf5 {[%clk 0:02:42]} 6. Bb2 {[%clk 0:02:54]}  e6 {[%clk 0:02:41]} 7. Nf3 {[%clk 0:02:47]}  c5 {[%clk 0:02:38]} 8. bxc5 {[%clk 0:02:44]}  Bxc5 {[%clk 0:02:39]} 9. Qb5+ {[%clk 0:02:37]}  Nbd7 {[%clk 0:02:38]} 10. Bxd4 {[%clk 0:02:34]}  a6 {[%clk 0:02:34]} 11. Qb2 {[%clk 0:02:33]}  O-O {[%clk 0:02:32]} 12. Nc3 {[%clk 0:02:13]}  Rc8 {[%clk 0:02:26]} 13. e3 {[%clk 0:02:07]}  Re8 {[%clk 0:02:11]} 14. Bxf6 {[%clk 0:01:55]}  Qxf6 {[%clk 0:02:01]} 15. d4 {[%clk 0:01:54]}  Bb6 {[%clk 0:01:52]} 16. Be2 {[%clk 0:01:53]}  Ba5 {[%clk 0:01:38]} 17. O-O {[%clk 0:01:50]}  b5 {[%clk 0:01:38]} 18. Rac1 {[%clk 0:01:32]}  bxc4 {[%clk 0:01:37]} 19. Qa3 {[%clk 0:01:30]}  Qd8 {[%clk 0:01:23]} 20. Na4 {[%clk 0:01:27]}  Be4 {[%clk 0:01:15]} 21. Rfd1 {[%clk 0:01:20]}  Bd5 {[%clk 0:01:10]} 22. Nc3 {[%clk 0:01:05]}  f5 {[%clk 0:01:02]} 23. Qd6 {[%clk 0:00:49]}  Nb6 {[%clk 0:00:44]} 24. Qa3 {[%clk 0:00:42]}  Nd7 {[%clk 0:00:33]} 25. Nd2 {[%clk 0:00:42]}  Nf6 {[%clk 0:00:22]} 26. Na4 {[%clk 0:00:36]}  Bxd2 {[%clk 0:00:21]} 27. Rxd2 {[%clk 0:00:37]}  Ne4 {[%clk 0:00:21]} 28. Rdc2 {[%clk 0:00:37]}  Qg5 {[%clk 0:00:17]} 29. f3 {[%clk 0:00:31]}  Nf6 {[%clk 0:00:07]} 30. Kh1 {[%clk 0:00:25]}  Kh8 {[%clk 0:00:03]} 31. Bxc4 {[%clk 0:00:17]}  Rcd8 {[%clk 0:00:03]} 32. Nc5 {[%clk 0:00:15]}  f4 {[%clk 0:00:02]} 33. e4 {[%clk 0:00:14]}  Bxc4 {[%clk 0:00:01]} 34. Rxc4 {[%clk 0:00:15]} 1-0


[Site "https://www.chess.com"]

[Event "Titled Tuesday Blitz January 31 Early 2023"]
[White "Ter-Sahakyan, Samvel"]
[Black "Reprintsev, Alexander"]
[WhiteFideId "13302531"]
[BlackFideId "14100541"]
[WhiteElo "2617"]
[BlackElo "2253"]
[Result "1-0"]
[Round "03"]
[TimeControl "180+2"]
[Date "2023.01.31"]
[WhiteClock "0:00:06"]
[BlackClock "0:00:01"]

1. d4 {[%clk 0:02:59]}  d5 {[%clk 0:02:59]} 2. c4 {[%clk 0:02:59]}  e5 {[%clk 0:02:59]} 3. dxe5 {[%clk 0:02:58]}  d4 {[%clk 0:02:59]} 4. Nf3 {[%clk 0:02:56]}  Nc6 {[%clk 0:02:59]} 5. g3 {[%clk 0:02:55]}  Nge7 {[%clk 0:02:59]} 6. Nbd2 {[%clk 0:02:51]}  Ng6 {[%clk 0:02:55]} 7. Nb3 {[%clk 0:02:51]}  Ngxe5 {[%clk 0:02:45]} 8. Bg2 {[%clk 0:02:37]}  Nxf3+ {[%clk 0:02:44]} 9. Bxf3 {[%clk 0:02:36]}  Bb4+ {[%clk 0:02:42]} 10. Bd2 {[%clk 0:02:35]}  Be7 {[%clk 0:02:31]} 11. O-O {[%clk 0:02:29]}  Bh3 {[%clk 0:02:30]} 12. Re1 {[%clk 0:02:27]}  O-O {[%clk 0:02:26]} 13. a3 {[%clk 0:02:16]}  Qd7 {[%clk 0:02:21]} 14. Nc1 {[%clk 0:02:08]}  Ne5 {[%clk 0:02:16]} 15. Nd3 {[%clk 0:01:38]}  Nxf3+ {[%clk 0:02:06]} 16. exf3 {[%clk 0:01:39]}  Bf5 {[%clk 0:02:06]} 17. Ne5 {[%clk 0:01:36]}  Qc8 {[%clk 0:01:48]} 18. Bf4 {[%clk 0:01:24]}  c5 {[%clk 0:01:48]} 19. b3 {[%clk 0:01:14]}  Re8 {[%clk 0:01:45]} 20. Qd2 {[%clk 0:01:07]}  f6 {[%clk 0:01:42]} 21. Nd3 {[%clk 0:01:05]}  Qc6 {[%clk 0:01:38]} 22. g4 {[%clk 0:00:48]}  Bg6 {[%clk 0:01:34]} 23. Kg2 {[%clk 0:00:49]}  Bd6 {[%clk 0:01:23]} 24. Bxd6 {[%clk 0:00:48]}  Qxd6 {[%clk 0:01:23]} 25. b4 {[%clk 0:00:44]}  b6 {[%clk 0:01:22]} 26. bxc5 {[%clk 0:00:33]}  bxc5 {[%clk 0:01:22]} 27. Nf4 {[%clk 0:00:33]}  Bf7 {[%clk 0:01:17]} 28. Rxe8+ {[%clk 0:00:27]}  Rxe8 {[%clk 0:01:16]} 29. Rc1 {[%clk 0:00:27]}  g5 {[%clk 0:01:12]} 30. Nd3 {[%clk 0:00:27]}  Bg6 {[%clk 0:01:11]} 31. h3 {[%clk 0:00:22]}  h5 {[%clk 0:00:56]} 32. Rd1 {[%clk 0:00:22]}  hxg4 {[%clk 0:00:48]} 33. hxg4 {[%clk 0:00:23]}  Kf7 {[%clk 0:00:46]} 34. Rh1 {[%clk 0:00:23]}  Kg7 {[%clk 0:00:40]} 35. Qd1 {[%clk 0:00:21]}  Re7 {[%clk 0:00:34]} 36. Qd2 {[%clk 0:00:21]}  Kg8 {[%clk 0:00:32]} 37. Qd1 {[%clk 0:00:20]}  Rh7 {[%clk 0:00:32]} 38. Rxh7 {[%clk 0:00:20]}  Kxh7 {[%clk 0:00:32]} 39. Qe2 {[%clk 0:00:18]}  Kg7 {[%clk 0:00:25]} 40. Qd2 {[%clk 0:00:18]}  a5 {[%clk 0:00:19]} 41. Qe2 {[%clk 0:00:16]}  a4 {[%clk 0:00:19]} 42. Qd2 {[%clk 0:00:16]}  Qe7 {[%clk 0:00:17]} 43. Qd1 {[%clk 0:00:15]}  Qc7 {[%clk 0:00:14]} 44. Qe2 {[%clk 0:00:14]}  Qf7 {[%clk 0:00:13]} 45. Nxc5 {[%clk 0:00:13]}  Kg8 {[%clk 0:00:11]} 46. Ne4 {[%clk 0:00:12]}  Kg7 {[%clk 0:00:10]} 47. c5 {[%clk 0:00:12]}  Qd5 {[%clk 0:00:10]} 48. Nd6 {[%clk 0:00:06]}  d3 {[%clk 0:00:05]} 49. Qe7+ {[%clk 0:00:06]}  Bf7 {[%clk 0:00:05]} 50. Nf5+ {[%clk 0:00:05]}  Kg8 {[%clk 0:00:03]} 51. Qxf6 {[%clk 0:00:06]}  Kf8 {[%clk 0:00:01]} 52. Qe7+ {[%clk 0:00:06]}  Kg8 {[%clk 0:00:01]} 53. Qxg5+ {[%clk 0:00:06]}  Kf8 {[%clk 0:00:01]} 54. Qe7+ {[%clk 0:00:05]}  Kg8 {[%clk 0:00:02]} 55. Qf6 {[%clk 0:00:05]}  Kf8 {[%clk 0:00:02]} 56. Qh8+ {[%clk 0:00:06]}  Bg8 {[%clk 0:00:01]} 57. Qg7+ {[%clk 0:00:06]} 1-0


[Site "https://www.chess.com"]

[Event "Titled Tuesday Blitz January 31 Early 2023"]
[White "Solovchuk, Oleksiy"]
[Black "Harsh Suresh"]
[WhiteFideId "14115220"]
[BlackFideId "45018464"]
[WhiteElo "2303"]
[BlackElo "2298"]
[Result "0-1"]
[Round "03"]
[TimeControl "180+2"]
[Date "2023.01.31"]
[WhiteClock "0:00:11"]
[BlackClock "0:00:19"]

1. c4 {[%clk 0:03:00]}  g6 {[%clk 0:02:59]} 2. Nc3 {[%clk 0:02:57]}  Bg7 {[%clk 0:02:59]} 3. d4 {[%clk 0:02:58]}  d6 {[%clk 0:02:56]} 4. e4 {[%clk 0:02:56]}  Nd7 {[%clk 0:02:45]} 5. Be3 {[%clk 0:02:51]}  b6 {[%clk 0:02:42]} 6. Bd3 {[%clk 0:02:42]}  Bb7 {[%clk 0:02:42]} 7. Nge2 {[%clk 0:02:41]}  c5 {[%clk 0:02:39]} 8. d5 {[%clk 0:02:25]}  h5 {[%clk 0:02:38]} 9. Bc2 {[%clk 0:02:04]}  Ngf6 {[%clk 0:02:36]} 10. f3 {[%clk 0:02:00]}  h4 {[%clk 0:02:35]} 11. Qd2 {[%clk 0:01:59]}  a6 {[%clk 0:02:34]} 12. a4 {[%clk 0:01:57]}  Ne5 {[%clk 0:02:30]} 13. b3 {[%clk 0:01:57]}  h3 {[%clk 0:02:29]} 14. O-O {[%clk 0:01:51]}  hxg2 {[%clk 0:02:28]} 15. Kxg2 {[%clk 0:01:51]}  Qd7 {[%clk 0:02:27]} 16. Ng1 {[%clk 0:01:51]}  O-O-O {[%clk 0:02:24]} 17. a5 {[%clk 0:01:47]}  bxa5 {[%clk 0:01:56]} 18. Rf2 {[%clk 0:01:43]}  Nh5 {[%clk 0:01:50]} 19. Kf1 {[%clk 0:01:41]}  g5 {[%clk 0:01:46]} 20. Bxg5 {[%clk 0:01:26]}  Rdg8 {[%clk 0:01:45]} 21. Rxa5 {[%clk 0:01:15]}  Ng6 {[%clk 0:01:40]} 22. Na4 {[%clk 0:01:09]}  Kb8 {[%clk 0:01:39]} 23. b4 {[%clk 0:01:03]}  Bd4 {[%clk 0:01:33]} 24. bxc5 {[%clk 0:01:02]}  Bxf2 {[%clk 0:01:28]} 25. Qxf2 {[%clk 0:00:59]}  Qc7 {[%clk 0:01:17]} 26. Bd2 {[%clk 0:00:44]}  Ne5 {[%clk 0:01:10]} 27. c6 {[%clk 0:00:23]}  Nxc4 {[%clk 0:01:05]} 28. cxb7 {[%clk 0:00:21]}  Nxa5 {[%clk 0:01:04]} 29. Bd3 {[%clk 0:00:16]}  Nc4 {[%clk 0:00:41]} 30. Bc3 {[%clk 0:00:16]}  Nf4 {[%clk 0:00:34]} 31. Bxh8 {[%clk 0:00:11]}  Nxd3 {[%clk 0:00:34]} 32. Qd4 {[%clk 0:00:11]}  Nce5 {[%clk 0:00:31]} 33. Bxe5 {[%clk 0:00:10]}  Qc1+ {[%clk 0:00:30]} 34. Ke2 {[%clk 0:00:10]}  Rg2+ {[%clk 0:00:20]} 35. Kxd3 {[%clk 0:00:10]}  Rd2+ {[%clk 0:00:20]} 36. Ke3 {[%clk 0:00:10]}  Rxd4+ {[%clk 0:00:20]} 37. Kxd4 {[%clk 0:00:11]}  Qxg1+ {[%clk 0:00:19]} 38. Kc4 {[%clk 0:00:11]}  dxe5 {[%clk 0:00:19]} 39. Nc5 {[%clk 0:00:11]}  Qd4+ {[%clk 0:00:19]} 0-1


[Site "https://www.chess.com"]

[Event "Titled Tuesday Blitz January 31 Early 2023"]
[White "Garv Gaur"]
[Black "Vakhlamov, Igor L."]
[WhiteFideId "45030839"]
[BlackFideId "24126748"]
[WhiteElo "2006"]
[BlackElo "2413"]
[Result "0-1"]
[Round "03"]
[TimeControl "180+2"]
[Date "2023.01.31"]
[WhiteClock "0:00:01"]
[BlackClock "0:00:10"]

1. Nf3 {[%clk 0:03:00]}  Nf6 {[%clk 0:02:58]} 2. g3 {[%clk 0:03:00]}  g6 {[%clk 0:02:59]} 3. Bg2 {[%clk 0:03:01]}  c5 {[%clk 0:02:59]} 4. O-O {[%clk 0:02:58]}  Bg7 {[%clk 0:03:00]} 5. c4 {[%clk 0:02:57]}  O-O {[%clk 0:03:00]} 6. Nc3 {[%clk 0:02:53]}  Nc6 {[%clk 0:03:00]} 7. d4 {[%clk 0:02:53]}  cxd4 {[%clk 0:03:01]} 8. Nxd4 {[%clk 0:02:54]}  Qa5 {[%clk 0:03:02]} 9. e3 {[%clk 0:02:53]}  d6 {[%clk 0:03:01]} 10. Bd2 {[%clk 0:02:49]}  Bd7 {[%clk 0:03:00]} 11. Nd5 {[%clk 0:02:46]}  Qd8 {[%clk 0:02:59]} 12. Bc3 {[%clk 0:02:47]}  Nxd5 {[%clk 0:02:54]} 13. cxd5 {[%clk 0:02:45]}  Nxd4 {[%clk 0:02:53]} 14. Bxd4 {[%clk 0:02:45]}  Bxd4 {[%clk 0:02:53]} 15. Qxd4 {[%clk 0:02:46]}  Qa5 {[%clk 0:02:54]} 16. Rfc1 {[%clk 0:02:45]}  Rfc8 {[%clk 0:02:54]} 17. a3 {[%clk 0:02:40]}  Qa4 {[%clk 0:02:41]} 18. Qxa4 {[%clk 0:02:30]}  Bxa4 {[%clk 0:02:42]} 19. Bf1 {[%clk 0:02:30]}  Kg7 {[%clk 0:02:37]} 20. Bd3 {[%clk 0:02:23]}  h6 {[%clk 0:02:33]} 21. Kf1 {[%clk 0:02:21]}  Kf6 {[%clk 0:02:33]} 22. f4 {[%clk 0:02:20]}  Bd7 {[%clk 0:02:19]} 23. Ke2 {[%clk 0:02:18]}  g5 {[%clk 0:02:12]} 24. e4 {[%clk 0:02:15]}  gxf4 {[%clk 0:02:05]} 25. gxf4 {[%clk 0:02:15]}  e5 {[%clk 0:01:57]} 26. fxe5+ {[%clk 0:02:12]}  Kxe5 {[%clk 0:01:58]} 27. Ke3 {[%clk 0:02:12]}  a5 {[%clk 0:01:32]} 28. Rf1 {[%clk 0:02:10]}  Rf8 {[%clk 0:01:24]} 29. Rf4 {[%clk 0:02:03]}  f5 {[%clk 0:01:15]} 30. Raf1 {[%clk 0:02:01]}  Rae8 {[%clk 0:01:09]} 31. Kd2 {[%clk 0:01:45]}  Rf6 {[%clk 0:01:02]} 32. exf5 {[%clk 0:01:42]}  Ref8 {[%clk 0:00:59]} 33. Rh4 {[%clk 0:00:54]}  Bxf5 {[%clk 0:00:50]} 34. Bxf5 {[%clk 0:00:53]}  Rxf5 {[%clk 0:00:51]} 35. Rxf5+ {[%clk 0:00:53]}  Rxf5 {[%clk 0:00:52]} 36. Rxh6 {[%clk 0:00:53]}  Kxd5 {[%clk 0:00:51]} 37. Kc3 {[%clk 0:00:53]}  Rf3+ {[%clk 0:00:50]} 38. Kc2 {[%clk 0:00:53]}  Rf2+ {[%clk 0:00:49]} 39. Kc3 {[%clk 0:00:53]}  Rf3+ {[%clk 0:00:46]} 40. Kc2 {[%clk 0:00:53]}  b5 {[%clk 0:00:47]} 41. Rh5+ {[%clk 0:00:51]}  Kc4 {[%clk 0:00:47]} 42. Rh4+ {[%clk 0:00:47]}  Kc5 {[%clk 0:00:47]} 43. Rh5+ {[%clk 0:00:47]}  d5 {[%clk 0:00:47]} 44. Rh8 {[%clk 0:00:45]}  Rf2+ {[%clk 0:00:46]} 45. Kb3 {[%clk 0:00:40]}  a4+ {[%clk 0:00:46]} 46. Kc3 {[%clk 0:00:30]}  Rf3+ {[%clk 0:00:45]} 47. Kc2 {[%clk 0:00:30]}  Kc4 {[%clk 0:00:44]} 48. Rc8+ {[%clk 0:00:03]}  Kd4 {[%clk 0:00:44]} 49. Rc3 {[%clk 0:00:04]}  Rf2+ {[%clk 0:00:42]} 50. Kc1 {[%clk 0:00:04]}  Rxh2 {[%clk 0:00:43]} 51. Rg3 {[%clk 0:00:04]}  Rh1+ {[%clk 0:00:42]} 52. Kc2 {[%clk 0:00:04]}  Rh2+ {[%clk 0:00:42]} 53. Kc1 {[%clk 0:00:05]}  Rh4 {[%clk 0:00:37]} 54. Rg1 {[%clk 0:00:03]}  Kc4 {[%clk 0:00:37]} 55. Rg8 {[%clk 0:00:03]}  d4 {[%clk 0:00:36]} 56. Rg3 {[%clk 0:00:02]}  Rh1+ {[%clk 0:00:35]} 57. Kd2 {[%clk 0:00:02]}  Rh2+ {[%clk 0:00:36]} 58. Kc1 {[%clk 0:00:03]}  Re2 {[%clk 0:00:36]} 59. Rg4 {[%clk 0:00:03]}  Kd3 {[%clk 0:00:36]} 60. Rg3+ {[%clk 0:00:03]}  Re3 {[%clk 0:00:36]} 61. Rg1 {[%clk 0:00:03]}  Rh3 {[%clk 0:00:33]} 62. Rf1 {[%clk 0:00:03]}  Kc4 {[%clk 0:00:31]} 63. Rg1 {[%clk 0:00:03]}  Rh2 {[%clk 0:00:28]} 64. Rg4 {[%clk 0:00:03]}  Rf2 {[%clk 0:00:21]} 65. Rh4 {[%clk 0:00:03]}  Kd3 {[%clk 0:00:21]} 66. Rh3+ {[%clk 0:00:03]}  Ke4 {[%clk 0:00:21]} 67. Rh4+ {[%clk 0:00:03]}  Ke3 {[%clk 0:00:22]} 68. Rh1 {[%clk 0:00:04]}  Ke2 {[%clk 0:00:19]} 69. Rh8 {[%clk 0:00:02]}  Rf3 {[%clk 0:00:18]} 70. Rh2+ {[%clk 0:00:02]}  Ke1 {[%clk 0:00:15]} 71. Rh1+ {[%clk 0:00:02]}  Kf2 {[%clk 0:00:15]} 72. Rh2+ {[%clk 0:00:03]}  Ke3 {[%clk 0:00:14]} 73. Rh1 {[%clk 0:00:03]}  d3 {[%clk 0:00:14]} 74. Re1+ {[%clk 0:00:03]}  Kd4 {[%clk 0:00:14]} 75. Re8 {[%clk 0:00:03]}  Rf1+ {[%clk 0:00:14]} 76. Kd2 {[%clk 0:00:03]}  Rf2+ {[%clk 0:00:15]} 77. Kc1 {[%clk 0:00:04]}  Rc2+ {[%clk 0:00:15]} 78. Kb1 {[%clk 0:00:04]}  Rc5 {[%clk 0:00:14]} 79. Re7 {[%clk 0:00:03]}  d2 {[%clk 0:00:13]} 80. Rd7+ {[%clk 0:00:02]}  Ke3 {[%clk 0:00:14]} 81. Re7+ {[%clk 0:00:02]}  Kd3 {[%clk 0:00:14]} 82. Rd7+ {[%clk 0:00:02]}  Ke2 {[%clk 0:00:14]} 83. Re7+ {[%clk 0:00:02]}  Kd1 {[%clk 0:00:15]} 84. Rh7 {[%clk 0:00:02]}  Re5 {[%clk 0:00:14]} 85. Rh1+ {[%clk 0:00:01]}  Re1 {[%clk 0:00:14]} 86. Rh2 {[%clk 0:00:02]}  Rf1 {[%clk 0:00:13]} 87. Rg2 {[%clk 0:00:02]}  Ke1 {[%clk 0:00:09]} 88. Ka2 {[%clk 0:00:02]}  d1=Q {[%clk 0:00:09]} 89. Rc2 {[%clk 0:00:02]}  Qxc2 {[%clk 0:00:08]} 90. Ka1 {[%clk 0:00:02]}  Kd2+ {[%clk 0:00:09]} 91. Ka2 {[%clk 0:00:01]}  Qb3# {[%clk 0:00:10]} 0-1


[Site "https://www.chess.com"]

[Event "Titled Tuesday Blitz January 31 Early 2023"]
[White "Borrmann, Laurenz"]
[Black "Kilic, Eray"]
[WhiteFideId "312187930"]
[BlackFideId "44517173"]
[WhiteElo "2304"]
[BlackElo "2414"]
[Result "0-1"]
[Round "03"]
[TimeControl "180+2"]
[Date "2023.01.31"]
[WhiteClock "0:00:02"]
[BlackClock "0:00:15"]

1. e4 {[%clk 0:02:46]}  c5 {[%clk 0:02:58]} 2. Nf3 {[%clk 0:02:44]}  d6 {[%clk 0:02:58]} 3. d4 {[%clk 0:02:44]}  cxd4 {[%clk 0:02:59]} 4. Nxd4 {[%clk 0:02:45]}  Nf6 {[%clk 0:03:00]} 5. Nc3 {[%clk 0:02:44]}  a6 {[%clk 0:03:00]} 6. Be2 {[%clk 0:02:41]}  e6 {[%clk 0:03:00]} 7. O-O {[%clk 0:02:38]}  Be7 {[%clk 0:02:59]} 8. f4 {[%clk 0:02:36]}  Qc7 {[%clk 0:02:59]} 9. Be3 {[%clk 0:02:33]}  Nbd7 {[%clk 0:02:57]} 10. Kh1 {[%clk 0:02:12]}  b5 {[%clk 0:02:48]} 11. a3 {[%clk 0:01:53]}  Bb7 {[%clk 0:02:47]} 12. Bf3 {[%clk 0:01:52]}  O-O {[%clk 0:02:46]} 13. Qe2 {[%clk 0:01:46]}  Nc5 {[%clk 0:02:37]} 14. Bf2 {[%clk 0:01:41]}  Rad8 {[%clk 0:02:32]} 15. Rad1 {[%clk 0:01:38]}  d5 {[%clk 0:02:25]} 16. e5 {[%clk 0:01:27]}  Nfe4 {[%clk 0:02:25]} 17. Nxe4 {[%clk 0:01:25]}  dxe4 {[%clk 0:02:16]} 18. Bg4 {[%clk 0:01:24]}  Bd5 {[%clk 0:02:16]} 19. Qe3 {[%clk 0:01:13]}  f5 {[%clk 0:02:01]} 20. exf6 {[%clk 0:01:10]}  Rxf6 {[%clk 0:02:01]} 21. Bh4 {[%clk 0:01:08]}  Rff8 {[%clk 0:01:35]} 22. Bxe7 {[%clk 0:01:07]}  Qxe7 {[%clk 0:01:36]} 23. f5 {[%clk 0:00:48]}  Bc4 {[%clk 0:01:22]} 24. Rfe1 {[%clk 0:00:37]}  Qh4 {[%clk 0:00:37]} 25. Nc6 {[%clk 0:00:17]}  Rxd1 {[%clk 0:00:32]} 26. Bxd1 {[%clk 0:00:10]}  Rxf5 {[%clk 0:00:30]} 27. b3 {[%clk 0:00:07]}  Bd5 {[%clk 0:00:23]} 28. g3 {[%clk 0:00:06]}  Qf6 {[%clk 0:00:17]} 29. Qxc5 {[%clk 0:00:03]}  Rf1+ {[%clk 0:00:17]} 30. Kg2 {[%clk 0:00:04]}  e3+ {[%clk 0:00:15]} 31. Qxd5 {[%clk 0:00:03]}  Rf2+ {[%clk 0:00:15]} 32. Kg1 {[%clk 0:00:02]}  exd5 {[%clk 0:00:15]} 0-1


[Site "https://www.chess.com"]